Cogmind - Beta 16 @@@ ROGUE MODE // 2025.11.14 @ 05:39:12 Player: Red Box Result: Self-destructed Performance ------------- Evolutions (2) 1000 Regions Visited (4) 800 Robots Destroyed (44) 220 Value Destroyed (921) 921 Prototype IDs (17) 340 Alien Tech Used (0) 0 Bonus (-7) -7 TOTAL SCORE: 3274 Bonus ------- Follower Combat Kills 37 Friendly Fire -44 Cogmind --------- Core Integrity 523/550 Matter 263/300 Energy 100/100 System Corruption 0% Temperature Cool (0) Movement Rolling (130) Ox2 Location -8/Materials Parts ------- > --- POWER (1) -------- (None) > --- PROPULSION (2) --- Light Treads Subdweller Monowheel > --- UTILITY (6) ------ Improved Heat Sink Large Storage Unit Hardened Medium Armor Plating Makeshift Thermal Plating Scrap Shield > --- WEAPON (2) ------- Subdweller Machine Gun Subdweller Machine Gun > --- INVENTORY (15) --- Makeshift Leg Arachnoskeleton Subdweller Monowheel Large Battery (200) High-capacity Matter Pod (75) Splice Drone Bay (6/6) Beam Rifle Makeshift Laser Subdweller Beam Cannon Battle Rifle Battle Cannon Grenade Launcher Makeshift Axe Peak State ------------ > --- POWER ------------ Light Angular Momentum Engine > --- PROPULSION ------- Light Treads Subdweller Monowheel > --- UTILITY ---------- Improved Heat Sink Large Storage Unit Hardened Medium Armor Plating Makeshift Thermal Plating Scrap Shield > --- WEAPON ----------- Subdweller Machine Gun Subdweller Machine Gun > --- INVENTORY -------- Makeshift Leg Arachnoskeleton Subdweller Monowheel Large Battery High-capacity Matter Pod Splice Drone Bay Beam Rifle Makeshift Laser Subdweller Beam Cannon Battle Rifle Battle Cannon Grenade Launcher Makeshift Axe [Rating: 32] Favorites ----------- Power Ion Engine Engine Ion Engine Propulsion Light Treads Treads Light Treads Leg Aluminum Leg Wheel Compact Wheel Utility Improved Terrain Scanner Device Improved Terrain Scanner Storage Medium Storage Unit Protection Scrap Shield Weapon Light Assault Rifle Energy Gun Subdweller Laser Energy Cannon Subdweller Beam Cannon Ballistic Gun Light Assault Rifle Ballistic Cannon Light Cannon Launcher Grenade Launcher Special Weapon Mining Laser Slashing Weapon Makeshift Axe Build | -11 -10 -10 -10 -8 ------- Run | Yrd Mat Min Sub Mat Slots Evolved 4 | . . . . 4 Power . | . . . . . Propulsion . | . . . . . Utility 4 | . . . . 4 Weapon . | . . . . . Parts Attached 41 | 7 8 2 20 4 Power 3 | 1 1 . 1 . Engine 3 | 1 1 . 1 . Core . | . . . . . Reactor . | . . . . . Propulsion 10 | 2 2 . 5 1 Treads 3 | . . . 2 1 Leg 2 | 2 . . . . Wheel 5 | . 2 . 3 . Hover . | . . . . . Flight . | . . . . . Utility 11 | 2 1 1 4 3 Device 5 | 1 . 1 2 1 Storage 3 | 1 1 . 1 . Processor . | . . . . . Hackware . | . . . . . Protection 3 | . . . 1 2 Artifact . | . . . . . Weapon 17 | 2 4 1 10 . Energy Gun 3 | . . . 3 . Energy Cannon 1 | . . . 1 . Ballistic Gun 7 | 2 1 . 4 . Ballistic Cannon 2 | . 1 . 1 . Launcher 2 | . 1 1 . . Special Weapon 1 | . 1 . . . Impact Weapon . | . . . . . Slashing Weapon 1 | . . . 1 . Piercing Weapon . | . . . . . Special Melee Weapon . | . . . . . Unidentified Prototypes 1 | . . 1 . . Parts Lost 8 | . 1 . 6 1 Power 2 | . 1 . . 1 Propulsion 4 | . . . 4 . Utility 1 | . . . 1 . Weapon 1 | . . . 1 . Highest Loss Streak 2 | . 1 . 2 1 To Critical Strikes . | . . . . . Average Backups 10 | 4 9 10 10 11 Power . | . . . . . Propulsion 3 | 3 4 3 2 2 Utility 2 | . 2 3 3 2 Weapon 3 | 1 2 3 4 6 Tool/Special . | . . . . . Unused Backups 11 | 1 . 2 2 6 Power 1 | . . . 1 . Propulsion 5 | . . 2 . 3 Utility 3 | . . . 1 2 Weapon 2 | 1 . . . 1 Tool/Special . | . . . . . Average Slot Usage (%) 99 | . 99 100 99 85 Engine 13 | . 13 14 14 9 Treads 10 | . . . 20 5 Leg 9 | . 25 . . . Wheel 8 | . 2 28 7 12 Device 13 | . 13 14 13 11 Storage 13 | . 14 14 13 9 Energy Gun 2 | . . . 6 . Energy Cannon 3 | . . . 7 . Ballistic Gun 10 | . 19 . 5 18 Ballistic Cannon 4 | . 3 14 3 . Launcher 3 | . . 13 2 . Special Weapon 2 | . 4 . 1 . Peak Build Rating 32 | 9 10 14 22 32 Average Rating 14 | 5 9 10 17 30 On Entrance 10 | . 9 10 11 22 Avg Prop Armor Cover (%) 9 | . . . 11 3 Naked Turns . | . . . . . Heaviest Build 68 | 13 20 22 42 68 Greatest Support 40 | 20 32 32 40 40 Greatest Overweight (x) 3 | 1 1 . 1 3 Average Overweight (x) . | . . . . 2 Largest Inventory Capacity 15 | 8 10 10 15 15 Average Capacity 11 | 7 9 10 13 15 Most Carried 15 | 7 10 10 15 15 Average Carried 11 | 5 9 9 13 14 Final Capacity 15 | 8 10 10 15 15 Final Carried 15 | 7 10 10 15 15 Class Distribution -------------------- 90% | Mutant 6% | Scavenger-Mutant Dominant Class ---------------- Mutant | -10/Materials Mutant | -10/Mines Mutant | -10/Subcaves Subdweller-Mutant | -8/Materials Resources | -11 -10 -10 -10 -8 ----------- Run | Yrd Mat Min Sub Mat Matter Collected 1600 | 302 417 126 634 121 Remotely . | . . . . . Salvage Created 1268 | 111 442 78 492 145 Parts 90 | 13 19 19 27 12 Haulers Intercepted 2 | . 2 . . . Recyclers Shooed . | . . . . . Parts Field Recycled . | . . . . . Retrieved Matter . | . . . . . Parts Self-Destructed 5 | . . . 5 . Prevented . | . . . . . Parts Restored . | . . . . . Kills | -11 -10 -10 -10 -8 ------- Run | Yrd Mat Min Sub Mat Combat Hostiles Destroyed 32 | . 9 11 10 2 Guns 10 | . 6 1 1 2 Cannons 8 | . . 3 5 . AOE 13 | . 3 7 3 . Classes Destroyed 10 | 2 4 1 1 2 Worker 1 | . . . . 1 Tunneler 3 | 3 . . . . Hauler 2 | . 2 . . . Recycler 2 | 1 . . . 1 Watcher 3 | . 3 . . . Swarmer 15 | . 3 11 . 1 Grunt 6 | . 6 . . . Sentry 1 | . . . . 1 Subdweller 10 | . . . 10 . Zionite 1 | . . 1 . . Best Kill Streak 3 | 3 3 3 2 2 Combat Bots Only 3 | . 3 3 2 1 Max Kills in Single Turn 3 | 1 3 3 2 1 Gunslinging . | . . . . . Exploded 3 | . 3 2 2 . Melee . | . . . . . Uniques/NPCs Destroyed . | . . . . . Combat | -11 -10 -10 -10 -8 -------- Run | Yrd Mat Min Sub Mat Hostile Shots Fired 133 | . 41 22 30 40 Missed 30 | . 6 4 8 12 Hits 103 | . 35 18 22 28 Projectile 103 | . 35 18 22 28 Critical Strikes 1 | . . . . 1 Damage Taken 1607 | . 470 261 620 256 Core 240 | . 113 56 44 27 Absorbed by Shields . | . . . . . Ignored by Resistances 6 | . . . . 6 Regen/Repaired (Parts) 12 | . 12 . . . Core Remaining (%) 57 | 100 . . 14 . Volleys Fired 174 | 16 81 10 56 11 Largest 2 | 2 2 2 2 2 Hottest 140 | 40 100 60 140 60 Shots Fired 299 | 32 141 20 87 19 Gun 208 | 32 119 4 34 19 Cannon 38 | . . 10 28 . Launcher 19 | . 1 6 12 . Special 34 | . 21 . 13 . Kinetic 222 | 32 119 14 38 19 Thermal 58 | . 21 . 37 . Explosive 19 | . 1 6 12 . Electromagnetic . | . . . . . Robot Hit Streak 18 | 6 16 3 18 3 Robot Miss Streak 6 | 2 5 4 2 6 Penetration Max . | . . . . . Secondary Targets 1 | . 1 . . . Max Gunslinging Chain 1 | . 1 . . . Shots Hit Robots 150 | 18 74 5 47 6 Core Hits 78 | 9 31 13 21 4 Critical Kills 1 | . . . 1 . Critical Parts Destroyed . | . . . . . Critical Strikes 3 | . . . 3 . Meltdown 1 | . . . 1 . Destroy 2 | . . . 2 . Melee Attacks 19 | . . . 19 . Impact . | . . . . . Slashing 19 | . . . 19 . Piercing . | . . . . . Sneak Attacks . | . . . . . Combat Hostiles . | . . . . . Follow-up Attacks . | . . . . . Damage Inflicted 3083 | 144 735 616 1449 139 Guns 1398 | 144 622 9 484 139 Cannons 542 | . . 89 453 . Explosions 1143 | . 113 518 512 . Melee . | . . . . . Ramming . | . . . . . Kinetic 1480 | 144 622 98 477 139 Thermal 460 | . . . 460 . Explosive 1143 | . 113 518 512 . Electromagnetic . | . . . . . Impact . | . . . . . Slashing . | . . . . . Piercing . | . . . . . Highest Corruption . | . . . . . Average Corruption . | . . . . . Corruption Purged . | . . . . . Corruption Blocked . | . . . . . Overload Shots . | . . . . . Overflow Damage 41 | . . 21 20 . Projectiles . | . . . . . Explosions 41 | . . 21 20 . Melee . | . . . . . Knockbacks 1 | . . 1 . . Impact . | . . . . . Kinetic 1 | . . 1 . . Secondary . | . . . . . Self-Inflicted Damage 160 | . . 109 51 . Shots 7 | . . 4 3 . Rammed . | . . . . . Targets Rammed . | . . . . . Kicked . | . . . . . Crushed . | . . . . . Highest Temperature 80 | . 80 10 3 11 Average Temperature 17 | . 18 7 3 11 Received Heat Transfer 405 | . 228 . 132 45 Siege Activations . | . . . . . Martial Activations . | . . . . . Shielding Activations . | . . . . . Robots Disrupted . | . . . . . Combat Hostiles . | . . . . . Robots Corrupted . | . . . . . Combat Hostiles . | . . . . . Parts Fried . | . . . . . Impact Corruptions . | . . . . . Robots Melted 1 | . . . 1 . Combat Hostiles 1 | . . . 1 . Parts Melted 3 | . . . 3 . Heat Transferred 582 | . . . 582 . Parts Sabotaged . | . . . . . Parts Stolen . | . . . . . Parts Stripped . | . . . . . Power Chain Reactions . | . . . . . Alert | -11 -10 -10 -10 -8 ------- Run | Yrd Mat Min Sub Mat Maximum Alert Level . | . . . . . Low Security (%) 100 | 100 100 100 . 100 Level 1 . | . . . . . Level 2 . | . . . . . Level 3 . | . . . . . Level 4 . | . . . . . Level 5 . | . . . . . High Security . | . . . . . Max Security . | . . . . . Peak Influence 113 | 10 99 113 . 26 Initial 9 | . . 9 . . Average 24 | 2 19 48 . 4 Influence Increases 853 | 20 419 346 . 68 Destroy 0b10 Robot/C 460 | . 180 240 . 40 Destroy 0b10 Robot/NC 55 | 20 25 . . 10 Destroy Leader 90 | . 40 40 . 10 Allied During Kill 11 | . . 11 . . Successful Hack 60 | . 54 . . 6 Select Force Hacks 60 | . 60 . . . Disable Machine 15 | . . 15 . . Destroy Structure 72 | . 30 40 . 2 Lose Combat Pursuer 30 | . 30 . . . Influence Decreases 852 | 20 394 362 9 67 Entered New Map 21 | . . 16 5 . Time Decay 805 | 20 378 346 4 57 Lost Part 20 | . 10 . . 10 Lost Ally 6 | . 6 . . . Squads Dispatched 6 | . 4 . . 2 Investigation 4 | . 4 . . . Extermination . | . . . . . Reinforcement 2 | . . . . 2 Assault . | . . . . . Garrison . | . . . . . Intercept . | . . . . . Searches Triggered . | . . . . . Construction Impeded . | . . . . . Haulers Reinforced . | . . . . . Active Scanning Responses . | . . . . . Cargo Convoy Interrupts . | . . . . . Stealth | -11 -10 -10 -10 -8 --------- Run | Yrd Mat Min Sub Mat Distress Signals 2 | . 2 . . . Communications Jammed . | . . . . . Distress Signals . | . . . . . Times Spotted 57 | . 21 12 11 13 Peak Tracking Total 11 | . 3 3 2 11 Tactical Retreats 2 | . 2 . . . Traps | -11 -10 -10 -10 -8 ------- Run | Yrd Mat Min Sub Mat Traps Triggered 3 | . 2 . 1 . Indirectly . | . . . . . Trap Hack Attempts . | . . . . . Triggered . | . . . . . Disarmed . | . . . . . Reprogrammed 6 | . . . . 6 Reused . | . . . . . Traps Extracted . | . . . . . Installed . | . . . . . Triggered . | . . . . . Machines | -11 -10 -10 -10 -8 ---------- Run | Yrd Mat Min Sub Mat Machines Disabled 2 | . . 1 1 . Max in Single Turn 1 | . . 1 1 . Machines Repaired . | . . . . . Machines Dismantled . | . . . . . Machines Sabotaged . | . . . . . Overloaded Fab Kills . | . . . . . Hacking | -11 -10 -10 -10 -8 --------- Run | Yrd Mat Min Sub Mat Machines Accessed 14 | . 10 1 1 2 Terminals 9 | . 7 . . 2 Fabricators . | . . . . . Repair Stations 1 | . 1 . . . Recycling Units 2 | . 2 . . . Scanalyzers . | . . . . . Garrison Access . | . . . . . Total Hacks 52 | . 45 1 1 5 Successful 31 | . 27 1 1 2 Failed 20 | . 17 . . 3 Catastrophic 3 | . 2 . . 1 Database Lockouts 1 | . 1 . . . Manual 31 | . 29 . . 2 Terminals 34 | . 29 . . 5 Fabricators . | . . . . . Repair Stations 2 | . 2 . . . Recycling Units 14 | . 14 . . . Scanalyzers . | . . . . . Garrison Access . | . . . . . Terminal Hacks 12 | . 9 1 1 1 Record 1 | . 1 . . . Robot Analysis 4 | . 4 . . . Prototype ID Bank 2 | . 2 . . . Open Door 1 | . . 1 . . Terminal Index 1 | . 1 . . . Locate Traps 1 | . 1 . . . Reprogram Traps 1 | . . . . 1 Proto ID Catalog 1 | . . . 1 . Fabricator Hacks . | . . . . . Repair Station Hacks 2 | . 2 . . . Scan Component 1 | . 1 . . . Repair 1 | . 1 . . . Recycling Unit Hacks 2 | . 2 . . . Retrieve Components 2 | . 2 . . . Scanalyzer . | . . . . . Garrison Access Hacks . | . . . . . Unauthorized Hacks 15 | . 14 . . 1 Terminals 7 | . 6 . . 1 Assimilate 5 | . 4 . . 1 Botnet 1 | . 1 . . . Operators 1 | . 1 . . . Fabricators . | . . . . . Repair Stations . | . . . . . Recycling Units 8 | . 8 . . . Monitor 1 | . 1 . . . Reject 2 | . 2 . . . Recyclers 1 | . 1 . . . Mask 2 | . 2 . . . Tunnel 2 | . 2 . . . Scanalyzers . | . . . . . Garrison Access . | . . . . . Data Cores Recovered . | . . . . . Used . | . . . . . Hacking Detections 11 | . 9 . . 2 Full Trace Events 2 | . 2 . . . Feedback Events . | . . . . . Feedback Blocked . | . . . . . Robot Schematics Acquired . | . . . . . Robots Built . | . . . . . Authchips . | . . . . . Time . | . . . . . Total Robot Build Rating . | . . . . . Part Schematics Acquired . | . . . . . Parts Built . | . . . . . Authchips . | . . . . . Time . | . . . . . Total Part Build Rating . | . . . . . Part Studies Acquired . | . . . . . Parts Repaired 1 | . 1 . . . Time 38 | . 38 . . . Parts Recycled . | . . . . . Recycled Matter . | . . . . . Retrieved Matter . | . . . . . Retrieved Components 12 | . 12 . . . Parts Scanalyzed . | . . . . . Part Schematics Acquired . | . . . . . Parts Damaged . | . . . . . Bothacking | -11 -10 -10 -10 -8 ------------ Run | Yrd Mat Min Sub Mat Used RIF Installer . | . . . . . Robots Hacked . | . . . . . Non-combat . | . . . . . Combat . | . . . . . Robot Hacks Applied . | . . . . . Relay Couplers Released . | . . . . . Fabnet Peak Effective % . | . . . . . Robots Rewired . | . . . . . Allies Hacked . | . . . . . Hacks Repelled . | . . . . . Allies | -11 -10 -10 -10 -8 -------- Run | Yrd Mat Min Sub Mat Total Allies 4 | . 2 2 . . Largest Group 2 | . 1 2 1 . Highest-Rated Group 43 | . 10 43 31 . Highest-Rated Ally 31 | . 10 31 31 . Total Orders . | . . . . . Ally Attacks 10 | . . 1 9 . Total Damage 147 | . . 21 126 . Kills 2 | . . 1 1 . Allies Corrupted . | . . . . . Allies Melted . | . . . . . Intel | -11 -10 -10 -10 -8 ------- Run | Yrd Mat Min Sub Mat Active Infowar (turns) 4564 | 16 2858 847 843 . Terrain 4564 | 16 2858 847 843 . Robot Analysis Total 4 | . 4 . . . Derelict Logs Recovered 2 | . . 1 1 . Drone Launches . | . . . . . Drone Recoveries . | . . . . . Exploration | -11 -10 -10 -10 -8 ------------- Run | Yrd Mat Min Sub Mat Turns Passed 7742 | 114 2896 851 3639 242 Spaces Moved 4230 | 49 1535 732 1765 149 Core 8 | 8 . . . . Treads 1003 | . . . 1003 . Legs 1318 | 41 1277 . . . Wheels 1901 | . 258 732 762 149 Hover . | . . . . . Flight . | . . . . . Fastest Speed 50 | 50 100 100 100 110 Average Speed 137 | 111 116 100 172 131 Slowest Speed 240 | 190 120 100 240 140 Overloaded Moves . | . . . . . Propulsion Burnouts . | . . . . . Robots Hopped . | . . . . . Potential Cave-ins . | . . . . . Cave-ins Triggered . | . . . . . Exploration Rate (%) 57 | 5 100 100 65 19 Regions Visited 4 Branch Regions 2 Pre-discovered Areas 3 | . 2 . 1 . Known Exits Taken . | . . . . . Unknown Exits Taken 4 | 1 1 1 1 . Scrap Searched 7 | . . 1 6 . Spaces Dug 21 | . 20 . 1 . Terrain Destroyed 141 | . 31 47 62 1 Melee 1 | . . . 1 . Projectile 22 | . 20 . 1 1 AOE 118 | . 11 47 60 . Terrain Rammed . | . . . . . Walls Destroyed . | . . . . . Machines Disabled . | . . . . . Actions | -11 -10 -10 -10 -8 --------- Run | Yrd Mat Min Sub Mat Total 5786 | 80 2476 832 2222 176 Wait 1222 | . 832 82 306 2 Move 4226 | 48 1534 731 1764 149 Hop . | . . . . . Pick Up 43 | 8 6 2 23 4 Fast Attach 22 | 7 3 2 7 3 Attach 13 | . 3 . 8 2 Detach 2 | . . . 1 1 Swap 36 | . 12 1 23 . Drop 27 | 1 5 4 14 3 Fire 174 | 16 81 10 56 11 Melee 19 | . . . 19 . Ram . | . . . . . Kick . | . . . . . Crush . | . . . . . Escape Stasis . | . . . . . Rewire . | . . . . . Trap . | . . . . . Miscellaneous 2 | . . . 1 1 Route ------- -11/Scrapyard -10/Materials (discovered 6 exits: [*Mat x3] / *Min x2 / *Sub) -10/Mines (discovered 3 exits: [*Mat x2] / *Sub) -10/Subcaves -8/Materials (discovered 1 exit: [*Sto]) History --------- Turn | Location | Event 6 | -11/Scrapyard | Discovered new exit (range 15) 115 | -11/Scrapyard | Entered Materials 250 | -10/Materials | Discovered new exit (range 8) 321 | -10/Materials | Build established: Mutant 386 | -10/Materials | Discovered new exit (range 10) 1003 | -10/Materials | Discovered new exit (range 14) 1016 | -10/Materials | Discovered new exit (range 7) 1086 | -10/Materials | Discovered new exit (range 11) 1729 | -10/Materials | Discovered new exit (range 10) 2401 | -10/Materials | Central database locked down 2761 | -10/Materials | Repaired Imp. Terrain Scanner 3011 | -10/Materials | Entered Mines 3014 | -10/Mines | Core integrity fell below 50% 3234 | -10/Mines | Discovered new exit (range 6) 3345 | -10/Mines | Discovered new exit (range 6) 3519 | -10/Mines | Discovered new exit (range 8) 3542 | -10/Mines | Found the Drone Emporium 3543 | -10/Mines | Learned Materials trap positions 3545 | -10/Mines | Found Prototype Device 3545 | -10/Mines | Identified Splice Drone Bay 3862 | -10/Mines | Entered Subcaves 3862 | -10/Subcaves | Accompanied by 1 ally 3867 | -10/Subcaves | Led the pair of lost Derelicts to an unsafe place 4570 | -10/Subcaves | Visited 4L-MR0's lab 4596 | -10/Subcaves | Found Arachnoskeleton 4851 | -10/Subcaves | Disturbed a concealed Subdweller 5406 | -10/Subcaves | Disturbed a concealed Subdweller 5780 | -10/Subcaves | Learned location of Storage (-8) 6131 | -10/Subcaves | Discovered new exit (range 7) 6896 | -10/Subcaves | Shifting Twisted Machinery released Sub. Power Source 6950 | -10/Subcaves | Core integrity fell below 20% 7195 | -10/Subcaves | Shifting Twisted Machinery released Flamer 7292 | -10/Subcaves | Build established: Scavenger-Mutant 7501 | -10/Subcaves | Entered Materials 7501 | -8/Materials | Evolved 4 slots: Utility x4 7502 | -8/Materials | Loaded intel: 23 trap records 7513 | -8/Materials | Discovered new exit (range 16) 7743 | -8/Materials | Self-destructed Last Messages --------------- 07701_ O-16 Technician uses terminal to summon reinforcements. 07701_ ALERT: Hostiles spotted, dispatching reinforcements to Terminal M006. 07701_ O-16 Technician locks terminal. 07707_ K-01 Serf collects debris. 07717_ Connecting with Terminal... >>Traps(Reprogram) Reprogrammed 6 Explosive Traps. >>Trojan(Assimilate) Trojan loaded successfully. Testing... System interface override in place. 07721_ K-01 Serf collects debris. 07733_ S-10 Pest destroyed. 07736_ Sub. Machine Gun shoots sparks and powers down. 07737_ ALERT: Hostiles spotted, dispatching reinforcements to Terminal M010. 07742_ Lgt. Angular Momentum Engine destroyed. Map ----- +----------------------------------------------------+ | | | | | | | | | | | ?????????????????????????????????????????????????? | | ???????????????????????????????##########????????? | | ???????????????###########?????# #????????? | | ???????????????# #?????# #????????? | | ???????????????# !! #?????# ########## | | ???????????????# !! #?????# / | | ???????????????# !! #?????# ######## | | ???????????????# #?????# #??????# | | ???????????????# #?????# #??????# | | ???????????????# #?????# #??????# # | | ???????????????# ####### #???####+# | | ????##################+### #####+######## | | ????# = + * | | ????# *< ####### | | ????# = #?????# """ | | ???#####+############"#### [ ########?????# """ | | ???# !!!#????#########= ##????????????# """ | | ???# "T" !! #????# #%g #?????????????# ! | | ???# """ !! #????# ! ! " #g #?????????????# | | ???# #????# o T%s= #######T###???#####+ | | ???###########????# "@# = ??? | | ??????????????????#! Y s # ? | | ??????????????????# s # """ """ """? """ | | ??????????????????# """ # "T" """ """ """ | | ??????????????????# """ # """ ?"" """ | | ??????????????????# """ # """ ?"" """ | | ??????????????????# = # ??? | | ?????????????????# # ?? | | ?????????????????###??##### ^ ### | | ??????????????????????????# #????? | | ??????????????????????????# ^ #?????###### | | ?????????????????????????? #??????????? | | ?????????????????????????? ^^ #??????????? | | ????????????????????????? ^ #??????????? | | ????????????????????????? ^ #??????????? | | ????????????????????????? #########??????????? | | ????????????????????????! #??????????????????? | | ????????????????????????### ???????????????????? | | ??????????????????????????# ???????????????????? | | ??????????????????????????? ???????????????????? | | ?????????????????????????????????????????????????? | | ?????????????????????????????????????????????????? | | ?????????????????????????????????????????????????? | | ?????????????????????????????????????????????????? | | ?????????????????????????????????????????????????? | +----------------------------------------------------+ Best States ------------- Heat Dissipation 55 Coolant Potential 50 Energy Generation 18 Energy Capacity 250 Matter Stores 300 Matter Capacity 300 Sight Range 16 Terrain Scan Range 16 Terrain Scan Density 10 Armor Coverage 1125 Resistance: TH 10 Evasion (%) 55 Recoil Reduction 2 Item Schematics ----------------- None Robot Schematics ------------------ None Fabricated ------------ Nothing Repaired ---------- Imp. Terrain Scanner | 45% | -10/Materials Studied --------- None Alien Tech Used ----------------- None Achievements -------------- None Challenges ------------ None Game ------ Seed ShiftShiftPlating Manual? 0 Play Time 00:50:29 Cumulative 687.3 hours Start 2025.11.14 @ 04:29:41 End 2025.11.14 @ 05:39:12 Sessions 1 Manual Loads 0 Difficulty Rogue Special Mode None Game No. 484 Rogue 484 Adventurer 0 Explorer 0 Win Type - Total 1 Types 1/0/0/0/0/0/0/0/0/0 Lore% 65 Gallery% 67 Achievement% 43 Wizard Run 0 Options --------- Layout 1 ASCII 0 Keyboard 0 Movement Mouse Keybinds 0 Fullscreen 1 Font 20/SmallcapsGlow Map View 54x42 Zoom Use 0% Tactical HUD 1 Map Filters NONE Filters NONE Steam 1 RUN: 26944061-f8ce-4b59-877f-146cb5b38929